fUST/lending_fUST_20240219
["ID","MTS","AMOUNT","RATE_DAILY","PERIOD"]
[314409327,1708300250912,-500.0,0.00028767,2]
[314409328,1708300250922,-500.0,0.00028767,2]
[314409329,1708300250932,-500.0,0.00028767,2]
[314409330,1708300250942,-2418.8,0.00028767,2]
[314409331,1708300250952,-1357.89,0.00028767,2]
[314409332,1708300250963,-1488.77,0.00028767,2]
[314409333,1708300250972,-300.52442936,0.00028767,2]
[314409334,1708300250982,-500.0,0.00028767,2]
[314409335,1708300250992,-500.0,0.00028767,2]
[314409336,1708300251002,-2361.07,0.00028767,2]
[314409337,1708300251012,-500.0,0.00028767,2]
[314409338,1708300251021,-500.0,0.00028767,2]
[314409339,1708300251031,-500.0,0.00028767,2]
[314409340,1708300251041,-500.0,0.00028767,2]
[314409341,1708300251050,-500.0,0.00028767,2]
[314409342,1708300251059,-3233.72,0.00028767,2]
[314409343,1708300251069,-2277.21,0.00028767,2]
[314409344,1708300251079,-2019.16,0.00028767,2]
[314409345,1708300251089,-500.0,0.00028767,2]
[314409346,1708300251099,-500.0,0.00028767,2]
[314409347,1708300251108,-420.85774375,0.00028767,2]
[314409348,1708300251118,-500.0,0.00028767,2]
[314409349,1708300251128,-300.0,0.00028992,2]
[314409350,1708300251137,-5745.22631674,0.00029,2]
[314409351,1708300251147,-500.0,0.00029041,2]
[314409352,1708300251157,-500.0,0.00029041,2]
[314409353,1708300251166,-500.0,0.00029041,2]
[314409354,1708300251175,-500.0,0.00029041,2]
[314409355,1708300251185,-500.0,0.00029041,2]
[314409356,1708300251194,-500.0,0.00029041,2]
[314409357,1708300251205,-500.0,0.00029041,2]
[314409358,1708300251214,-2418.8,0.00029041,2]
[314409359,1708300251223,-1357.89,0.00029041,2]
[314409360,1708300251233,-1488.77,0.00029041,2]
[314409361,1708300251242,-500.0,0.00029041,2]
[314409362,1708300251252,-500.0,0.00029041,2]
[314409363,1708300251261,-2361.07,0.00029041,2]
[314409364,1708300251271,-500.0,0.00029041,2]
[314409365,1708300251280,-500.0,0.00029041,2]
[314409366,1708300251290,-500.0,0.00029041,2]
[314409367,1708300251300,-500.0,0.00029041,2]
[314409368,1708300251309,-500.0,0.00029041,2]
[314409369,1708300251320,-3233.72,0.00029041,2]
[314409370,1708300251329,-2277.21,0.00029041,2]
[314409371,1708300251339,-2019.16,0.00029041,2]
[314409372,1708300251349,-500.0,0.00029041,2]
[314409373,1708300251359,-500.0,0.00029041,2]
[314409374,1708300251369,-500.0,0.00029041,2]
[314409375,1708300251380,-500.0,0.00029315,2]
[314409376,1708300251389,-500.0,0.00029315,2]
[314409377,1708300251399,-500.0,0.00029315,2]
[314409378,1708300251408,-500.0,0.00029315,2]
[314409379,1708300251417,-500.0,0.00029315,2]
[314409380,1708300251427,-500.0,0.00029315,2]
[314409381,1708300251436,-350.14129172,0.00029315,2]
[314409382,1708300251445,-2418.8,0.00029315,2]
[314409383,1708300251456,-1357.89,0.00029315,2]
[314409384,1708300251467,-1488.77,0.00029315,2]
[314409385,1708300251477,-500.0,0.00029315,2]
[314409386,1708300251487,-500.0,0.00029315,2]
[314409387,1708300251496,-2361.07,0.00029315,2]
[314409388,1708300251505,-500.0,0.00029315,2]
[314409389,1708300251516,-363.11802584,0.00029315,2]
[314409390,1708300251527,-500.0,0.00029315,2]
[314409391,1708300251537,-500.0,0.00029315,2]
[314409392,1708300251546,-500.0,0.00029315,2]
[314409393,1708300251557,-3233.72,0.00029315,2]
[314409394,1708300251566,-2277.21,0.00029315,2]
[314409395,1708300251576,-2019.16,0.00029315,2]
[314409396,1708300251586,-173.00178747,0.00029315,2]
[314409397,1708300251595,-500.0,0.00029315,2]
[314409398,1708300251605,-500.0,0.00029315,2]
[314409399,1708300251614,-5000.0,0.00029333,5]
[314409400,1708300251624,-5000.0,0.00029333,5]
[314409401,1708300251633,-892.85268371,0.00029334,2]
[314409402,1708300251643,-5000.0,0.00029345,5]
[314409403,1708300251652,-300.0,0.00029524,2]
[314409404,1708300251662,-500.0,0.00029589,2]
[314409405,1708300251671,-500.0,0.00029589,2]
[314409406,1708300251681,-500.0,0.00029589,2]
[314409407,1708300251690,-500.0,0.00029589,2]
[314409408,1708300251702,-500.0,0.00029589,2]
[314409409,1708300251711,-500.0,0.00029589,2]
[314409410,1708300251721,-2418.8,0.00029589,2]
[314409411,1708300251730,-1357.89,0.00029589,2]
[314409412,1708300251739,-1488.77,0.00029589,2]
[314409413,1708300251748,-500.0,0.00029589,2]
[314409414,1708300251757,-500.0,0.00029589,2]
[314409415,1708300251767,-2361.07,0.00029589,2]
[314409416,1708300251776,-500.0,0.00029589,2]
[314409417,1708300251785,-500.0,0.00029589,2]
[314409418,1708300251795,-500.0,0.00029589,2]
[314409419,1708300251804,-500.0,0.00029589,2]
[314409420,1708300251813,-3233.72,0.00029589,2]
[314409421,1708300251823,-2277.21,0.00029589,2]
[314409422,1708300251832,-2019.16,0.00029589,2]
[314409423,1708300251841,-500.0,0.00029589,2]
[314409424,1708300251851,-500.0,0.00029589,2]
[314409425,1708300251859,-153.0,0.00029589,2]
[314409426,1708300251868,-153.0,0.00029589,2]
[314409427,1708300251878,-153.0,0.00029589,2]
[314409428,1708300251887,-153.0,0.00029589,2]
[314409429,1708300251896,-153.0,0.00029589,2]
[314409430,1708300251906,-153.0,0.00029589,2]
[314409431,1708300251915,-153.0,0.00029589,2]
[314409432,1708300251924,-153.0,0.00029589,2]
[314409433,1708300251933,-153.0,0.00029589,2]
[314409434,1708300251942,-500.0,0.00029638,2]
[314409435,1708300251951,-500.0,0.00029863,2]
[314409436,1708300251960,-500.0,0.00029863,2]
[314409437,1708300251969,-500.0,0.00029863,2]
[314409438,1708300251978,-415.63927802,0.00029863,2]
[314409439,1708300251987,-500.0,0.00029863,2]
[314409440,1708300251996,-500.0,0.00029863,2]
[314409441,1708300252005,-2418.8,0.00029863,2]
[314409442,1708300252014,-1357.89,0.00029863,2]
[314409443,1708300252023,-1488.77,0.00029863,2]
[314409444,1708300252032,-500.0,0.00029863,2]
[314409445,1708300252041,-500.0,0.00029863,2]
[314409446,1708300252050,-2361.07,0.00029863,2]
[314409447,1708300252157,-500.0,0.00029863,2]
[314409448,1708300252166,-500.0,0.00029863,2]
[314409449,1708300252175,-500.0,0.00029863,2]
[314409450,1708300252185,-500.0,0.00029863,2]
[314409451,1708300252194,-3233.72,0.00029863,2]
[314409452,1708300252203,-2277.21,0.00029863,2]
[314409453,1708300252213,-2019.16,0.00029863,2]
[314409454,1708300252222,-500.0,0.00029863,2]
[314409455,1708300252231,-500.0,0.00029863,2]
[314409456,1708300252241,-385.430796,0.000299,14]
[314409457,1708300252251,-1000.0,0.00029982,7]
[314409458,1708300252261,-1000.0,0.00029982,7]
[314409459,1708300252270,-258.41739474,0.00029998,2]
[314409460,1708300252279,-281.13639612,0.00029998,2]
[314409461,1708300252289,-244.98495506,0.00029998,2]
[314409462,1708300252298,-273.54659754,0.00029998,2]
[314409463,1708300252308,-212.9483842,0.00029998,2]
[314409464,1708300252317,-3073.73690601,0.00029998,2]
[314409465,1708300252326,-294.45299395,0.00029999,2]
[314409466,1708300252336,-500.0,0.00029999,2]
[314409467,1708300252345,-500.0,0.00029999,2]
[314409468,1708300252354,-500.0,0.00029999,2]
[314409469,1708300252363,-302.59792677,0.00029999,2]
[314409470,1708300252374,-433.27893098,0.00029999,2]
[314409471,1708300252385,-500.0,0.00029999,2]
[314409472,1708300252397,-500.0,0.00029999,2]
[314409473,1708300252408,-500.0,0.00029999,2]
[314409474,1708300252418,-500.0,0.00029999,2]
[314409475,1708300252427,-479.20833492,0.00029999,2]
[314409476,1708300252436,-500.0,0.00029999,2]
[314409477,1708300252446,-500.0,0.00029999,2]
[314409478,1708300252456,-500.0,0.00029999,2]
[314409479,1708300252465,-500.0,0.00029999,2]
[314409480,1708300252474,-500.0,0.00029999,2]
[314409481,1708300252483,-596.86869571,0.00029999,2]
[314409482,1708300252493,-5334.75204445,0.0003,30]
[314409483,1708300252607,-42707.85909546,0.0003,30]
[314409484,1708300252616,-500.0,0.0003,2]
[314409485,1708300252625,-1000.0,0.0003,2]
[314409486,1708300252634,-1000.0,0.0003,2]
[314409487,1708300252644,-500.0,0.0003,5]
[314409488,1708300252653,-70240.65741866,0.0003,10]
[314409489,1708300252663,-51292.5677308,0.0003,2]
[314409490,1708300252672,-355.98139691,0.0003,30]
[314409491,1708300252682,-943.9253854,0.0003,7]
[314409492,1708300252691,-366.61392864,0.0003,4]
[314409493,1708300252700,-20000.0,0.0003,30]
[314409494,1708300252709,-200.0,0.0003,4]
[314409495,1708300252718,-1318.0,0.0003,7]
[314409496,1708300252728,-12126.0,0.0003,7]
[314409497,1708300252737,-261.0,0.0003,2]
[314409498,1708300252747,-264.51220852,0.00030019,5]
[314409499,1708300252756,-300.0,0.00030056,2]
[314409500,1708300252765,-500.0,0.00030136,2]
[314409501,1708300252774,-500.0,0.00030136,2]
[314409502,1708300252783,-500.0,0.00030136,2]
[314409503,1708300252792,-500.0,0.00030136,2]
[314409504,1708300252801,-500.0,0.00030136,2]
[314409505,1708300252810,-2418.8,0.00030136,2]
[314409506,1708300252819,-1357.89,0.00030136,2]
[314409507,1708300252828,-1488.77,0.00030136,2]
[314409508,1708300252837,-500.0,0.00030136,2]
[314409509,1708300252846,-500.0,0.00030136,2]
[314409510,1708300252855,-2361.07,0.00030136,2]
[314409511,1708300252864,-500.0,0.00030136,2]
[314409512,1708300252873,-500.0,0.00030136,2]
[314409513,1708300252882,-500.0,0.00030136,2]
[314409514,1708300252891,-500.0,0.00030136,2]
[314409515,1708300252900,-3233.72,0.00030136,2]
[314409516,1708300252909,-2277.21,0.00030136,2]
[314409517,1708300252918,-2019.16,0.00030136,2]
[314409518,1708300252931,-500.0,0.00030136,2]
[314409519,1708300252967,-500.0,0.00030136,2]
[314409520,1708300252976,-155.0,0.00030137,2]
[314409521,1708300252985,-41727.3906,0.00030156,30]
[314409522,1708300252995,-5000.0,0.00030316,7]
[314409523,1708300253004,-500.0,0.0003041,2]
[314409524,1708300253014,-370.69000155,0.0003041,2]
[314409525,1708300253023,-500.0,0.0003041,2]
[314409526,1708300253033,-500.0,0.0003041,2]
[314409527,1708300253042,-500.0,0.0003041,2]
[314409528,1708300253051,-2418.8,0.0003041,2]
[314409529,1708300253060,-1357.89,0.0003041,2]
[314409530,1708300253068,-1488.77,0.0003041,2]
[314409531,1708300253078,-500.0,0.0003041,2]
[314409532,1708300253087,-500.0,0.0003041,2]
[314409533,1708300253096,-2361.07,0.0003041,2]
[314409534,1708300253105,-500.0,0.0003041,2]
[314409535,1708300253114,-500.0,0.0003041,2]
[314409536,1708300253123,-500.0,0.0003041,2]
[314409537,1708300253132,-500.0,0.0003041,2]
[314409538,1708300253142,-3233.72,0.0003041,2]
[314409539,1708300253150,-2277.21,0.0003041,2]
[314409540,1708300253160,-2019.16,0.0003041,2]
[314409541,1708300253169,-500.0,0.0003041,2]
[314409542,1708300253178,-447.24601924,0.0003041,2]
[314409543,1708300253187,-308.5814078,0.00030411,2]
[314409544,1708300253196,-307.1769514,0.00030411,2]
[314409545,1708300253206,-153.0,0.00030411,2]
[314409546,1708300253215,-153.0,0.00030411,2]
[314409547,1708300253224,-153.0,0.00030411,2]
[314409548,1708300253233,-153.0,0.00030411,2]
[314409549,1708300253242,-153.0,0.00030411,2]
[314409550,1708300253251,-153.0,0.00030411,2]
[314409551,1708300253260,-153.0,0.00030411,2]
[314409552,1708300253269,-153.0,0.00030411,2]
[314409553,1708300253278,-200.3472215,0.00030411,2]
[314409554,1708300253288,-153.0,0.00030411,2]
[314409555,1708300253298,-153.0,0.00030411,2]
[314409556,1708300253308,-200.3472215,0.00030411,2]
[314409557,1708300253317,-153.0,0.00030411,2]
[314409558,1708300253326,-153.0,0.00030411,2]
[314409559,1708300253336,-634.79077746,0.00030469,2]
[314409560,1708300253345,-300.0,0.00030588,2]
[314409561,1708300253355,-500.0,0.00030684,2]
[314409562,1708300253367,-500.0,0.00030684,2]
[314409563,1708300253377,-500.0,0.00030684,2]
[314409564,1708300253387,-500.0,0.00030684,2]
[314409565,1708300253465,-2418.8,0.00030684,2]
[314409566,1708300253474,-1357.89,0.00030684,2]
[314409567,1708300253484,-1488.77,0.00030684,2]
[314409568,1708300253493,-500.0,0.00030684,2]
[314409569,1708300253503,-500.0,0.00030684,2]
[314409570,1708300253514,-2361.07,0.00030684,2]
[314409571,1708300253524,-500.0,0.00030684,2]
[314409572,1708300253533,-500.0,0.00030684,2]
[314409573,1708300253543,-630.3941619,0.00030684,2]
[314409574,1708300253552,-500.0,0.00030684,2]
[314409575,1708300253561,-3233.72,0.00030684,2]
[314409576,1708300253571,-2277.21,0.00030684,2]
[314409577,1708300253580,-2019.16,0.00030684,2]
[314409578,1708300253590,-500.0,0.00030684,2]
[314409579,1708300253599,-500.0,0.00030958,2]
[314409580,1708300253609,-391.00657038,0.00030958,2]
[314409581,1708300253618,-500.0,0.00030958,2]
[314409582,1708300253627,-500.0,0.00030958,2]
[314409583,1708300253637,-2418.8,0.00030958,2]
[314409584,1708300253647,-1357.89,0.00030958,2]
[314409585,1708300253656,-1488.77,0.00030958,2]
[314409586,1708300253666,-500.0,0.00030958,2]
[314409587,1708300253675,-500.0,0.00030958,2]
[314409588,1708300253684,-2361.07,0.00030958,2]
[314409589,1708300253693,-500.0,0.00030958,2]
[314409590,1708300253703,-356.89,0.00030958,2]
[314409591,1708300253712,-500.0,0.00030958,2]
[314409592,1708300253721,-3233.72,0.00030958,2]
[314409593,1708300253731,-2277.21,0.00030958,2]
[314409594,1708300253740,-2019.16,0.00030958,2]
[314409595,1708300253749,-500.0,0.00030958,2]
[314409596,1708300253759,-199.791215,0.00030959,2]
[314409597,1708300253768,-155.0294556,0.00031,4]
[314409598,1708300253777,-1000.0,0.00031,31]
[314409599,1708300253786,-4118.62211195,0.00031,2]
[314409600,1708300253796,-10000.0,0.00031,7]
[314409601,1708300253805,-114943.37393461,0.00031,4]
[314409602,1708300253850,-1567.96,0.00026886,3]
[314409660,1708301431892,-324.60333618,0.00020994,2]
[314409662,1708301431901,-346.008392,0.00021,2]
[314409664,1708301431911,-590.01546664,0.00022,2]
[314409666,1708301431920,-273.104945,0.00022927,2]
[314409668,1708301431930,-241.0125324,0.00023335,2]
[314409670,1708301431939,-300.0,0.00024033,2]
[314409672,1708301431948,-8302.50325518,0.00024034,2]
[314409674,1708301431963,-7364.07082869,0.00024034,2]
[314409676,1708301431974,-2069.68471635,0.00024034,2]
[314409678,1708301431985,-7163.74119978,0.00024034,2]
[314409680,1708301431994,-169.38022718,0.00024558,2]
[314409682,1708301432003,-166.649652,0.00024658,2]
[314409684,1708301432012,-935.2243293,0.000247,2]
[314409686,1708301432023,-13650.31290104,0.000248,2]
[314409688,1708301432032,-736.74539436,0.00025,10]
[314409690,1708301432043,-166.649652,0.00025619,2]
[314409692,1708301432054,-4743.35422364,0.0002645,2]
[314409694,1708301432063,-865.21590974,0.00026451,2]
[314409696,1708301432072,-704.27182435,0.00026451,2]
[314409698,1708301432082,-181.51308222,0.00026451,2]
[314409700,1708301432091,-181.51308222,0.00026451,2]
[314409702,1708301432100,-166.649652,0.00026581,2]
[314409704,1708301432109,-186.27878927,0.00026695,2]
[314409706,1708301432119,-19748.14,0.00026755,3]
[314409708,1708301432128,-13713.99,0.00026775,3]
[314409710,1708301432137,-2518.15750638,0.00026785,3]
[314409904,1708301440461,-261.53905327,0.00020993,2]
[314409905,1708301440473,-1441.99920212,0.00026795,2]
[314409906,1708301440488,-684.38823873,0.00026795,2]
[314409907,1708301440521,-260.29428997,0.00026795,2]
[314409908,1708301440535,-1521.62343863,0.00026795,2]
[314409909,1708301440549,-1006.20063554,0.00026795,2]
[314409913,1708301441130,-1046.50949091,0.00026795,2]
[314409922,1708301442936,-1671.67896243,0.00026795,2]
[314409923,1708301442949,-134458.09787469,0.00026795,2]
[314409924,1708301442959,-531.59636198,0.00027,7]
[314409925,1708301442971,-251.09650711,0.00027297,2]
[314409926,1708301442982,-500.0,0.00027397,2]
[314409927,1708301442993,-155.0,0.00027397,2]
[314409928,1708301443004,-500.0,0.00027397,2]
[314409929,1708301443015,-500.0,0.00027397,2]
[314409930,1708301443026,-1007.83,0.00027397,2]
[314409931,1708301443037,-565.79,0.00027397,2]
[314409932,1708301443049,-620.32,0.00027397,2]
[314409933,1708301443061,-500.0,0.00027397,2]
[314409934,1708301443072,-500.0,0.00027397,2]
[314409935,1708301443083,-500.0,0.00027397,2]
[314409936,1708301443094,-500.0,0.00027397,2]
[314409937,1708301443105,-1347.38,0.00027397,2]
[314409938,1708301443115,-983.78,0.00027397,2]
[314409939,1708301443125,-948.84,0.00027397,2]
[314409940,1708301443142,-841.32,0.00027397,2]
[314409941,1708301443156,-500.0,0.00027397,2]
[314409942,1708301443172,-4301.57049267,0.00027529,4]
[314409943,1708301443185,-1809.07007663,0.00027529,3]
[314409944,1708301443198,-731.84159135,0.00027529,2]
[314409945,1708301443209,-377.21933287,0.00027529,2]
[314409946,1708301443221,-166.649652,0.00027542,2]
[314409947,1708301443236,-500.0,0.00027671,2]
[314409948,1708301443249,-500.0,0.00027671,2]
[314409949,1708301443262,-500.0,0.00027671,2]
[314409950,1708301443274,-1007.83,0.00027671,2]
[314409951,1708301443284,-565.79,0.00027671,2]
[314409952,1708301443296,-620.32,0.00027671,2]
[314409953,1708301443307,-500.0,0.00027671,2]
[314409954,1708301443319,-500.0,0.00027671,2]
[314409955,1708301443330,-500.0,0.00027671,2]
[314409956,1708301443342,-500.0,0.00027671,2]
[314409957,1708301443353,-1347.38,0.00027671,2]
[314409958,1708301443365,-983.78,0.00027671,2]
[314409959,1708301443377,-948.84,0.00027671,2]
[314409960,1708301443389,-841.32,0.00027671,2]
[314409961,1708301443402,-500.0,0.00027671,2]
[314409962,1708301443414,-153.0,0.00027671,2]
[314409963,1708301443425,-500.0,0.00027944,2]
[314409964,1708301443436,-278.52142184,0.00027944,2]
[314409965,1708301443448,-421.11155926,0.00027944,2]
[314409966,1708301443458,-500.0,0.00027944,2]
[314409967,1708301443467,-169.11588784,0.00027944,2]
[314409968,1708301443477,-500.0,0.00027944,2]
[314409969,1708301443487,-228.96363308,0.00027944,2]
[314409970,1708301443496,-500.0,0.00027944,2]
[314409971,1708301443506,-597.42787306,0.00027944,2]
[314409972,1708301443516,-431.59469314,0.00027944,2]
[314409973,1708301443526,-500.0,0.00027944,2]
[314409974,1708301443538,-500.0,0.00027944,2]
[314409975,1708301443549,-500.0,0.00027944,2]
[314409976,1708301443561,-177.09161531,0.00027944,2]
[314409977,1708301443571,-270.08991969,0.00027944,2]
[314409978,1708301443583,-500.0,0.00027944,2]
[314409979,1708301443593,-500.0,0.00027944,2]
[314409980,1708301443604,-500.0,0.00027944,2]
[314409981,1708301443614,-555.36422077,0.00027944,2]
[314409982,1708301443624,-500.0,0.00027944,2]
[314409983,1708301443634,-500.0,0.00027944,2]
[314409984,1708301443643,-500.0,0.00027944,2]
[314409985,1708301443653,-500.0,0.00027944,2]
[314409986,1708301443663,-500.0,0.00027944,2]
[314409987,1708301443675,-500.0,0.00027944,2]
[314409988,1708301443685,-500.0,0.00027944,2]
[314409989,1708301443696,-500.0,0.00027944,2]
[314409990,1708301443706,-500.0,0.00027944,2]
[314409991,1708301443717,-500.0,0.00027944,2]
[314409992,1708301443729,-500.0,0.00027944,2]
[314409993,1708301443741,-500.0,0.00027944,2]
[314409994,1708301443753,-500.0,0.00027944,2]
[314409995,1708301443766,-500.0,0.00027944,2]
[314409996,1708301443778,-500.0,0.00027944,2]
[314409997,1708301443790,-500.0,0.00027944,2]
[314409998,1708301443802,-500.0,0.00027945,2]
[314409999,1708301443813,-538.04100349,0.00027945,2]
[314410000,1708301443824,-500.0,0.00027945,2]
[314410001,1708301443834,-1007.83,0.00027945,2]
[314410002,1708301443845,-565.79,0.00027945,2]
[314410003,1708301443855,-620.32,0.00027945,2]
[314410004,1708301443866,-500.0,0.00027945,2]
[314410005,1708301443877,-500.0,0.00027945,2]
[314410006,1708301443888,-500.0,0.00027945,2]
[314410007,1708301443900,-500.0,0.00027945,2]
[314410008,1708301443911,-1347.38,0.00027945,2]
[314410009,1708301443922,-983.78,0.00027945,2]
[314410010,1708301444030,-948.84,0.00027945,2]
[314410011,1708301444068,-841.32,0.00027945,2]
[314410012,1708301444077,-500.0,0.00027945,2]
[314410013,1708301444087,-500.0,0.00028219,2]
[314410014,1708301444096,-500.0,0.00028219,2]
[314410015,1708301444105,-1007.83,0.00028219,2]
[314410016,1708301444115,-565.79,0.00028219,2]
[314410017,1708301444125,-620.32,0.00028219,2]
[314410018,1708301444134,-500.0,0.00028219,2]
[314410019,1708301444143,-500.0,0.00028219,2]
[314410020,1708301444152,-500.0,0.00028219,2]
[314410021,1708301444162,-500.0,0.00028219,2]
[314410022,1708301444171,-1347.38,0.00028219,2]
[314410023,1708301444180,-983.78,0.00028219,2]
[314410024,1708301444189,-948.84,0.00028219,2]
[314410025,1708301444198,-841.32,0.00028219,2]
[314410026,1708301444208,-500.0,0.00028219,2]
[314410027,1708301444217,-251.0965071,0.00028364,2]
[314410028,1708301444226,-677.3,0.00028491,2]
[314410029,1708301444235,-313.07515901,0.00028493,2]
[314410030,1708301444244,-500.0,0.00028493,2]
[314410031,1708301444254,-1007.83,0.00028493,2]
[314410032,1708301444263,-565.79,0.00028493,2]
[314410033,1708301444272,-620.32,0.00028493,2]
[314410034,1708301444283,-500.0,0.00028493,2]
[314410035,1708301444294,-500.0,0.00028493,2]
[314410036,1708301444303,-500.0,0.00028493,2]
[314410037,1708301444313,-500.0,0.00028493,2]
[314410038,1708301444323,-1347.38,0.00028493,2]
[314410039,1708301444333,-983.78,0.00028493,2]
[314410040,1708301444342,-948.84,0.00028493,2]
[314410041,1708301444352,-841.32,0.00028493,2]
[314410042,1708301444364,-500.0,0.00028493,2]
[314410043,1708301444373,-155.0,0.00028767,2]
[314410044,1708301444383,-500.0,0.00028767,2]
[314410045,1708301444392,-1007.83,0.00028767,2]
[314410046,1708301444401,-565.79,0.00028767,2]
[314410047,1708301444410,-620.32,0.00028767,2]
[314410048,1708301444419,-345.28345333,0.00028767,2]
[314410049,1708301444428,-500.0,0.00028767,2]
[314410050,1708301444438,-500.0,0.00028767,2]
[314410051,1708301444447,-500.0,0.00028767,2]
[314410052,1708301444457,-1347.38,0.00028767,2]
[314410053,1708301444466,-983.78,0.00028767,2]
[314410054,1708301444475,-948.84,0.00028767,2]
[314410055,1708301444484,-841.32,0.00028767,2]
[314410056,1708301444493,-500.0,0.00028767,2]
[314410057,1708301444502,-155.0418613,0.00028857,2]
[314410058,1708301444511,-719.08680652,0.00028858,2]
[314410059,1708301444520,-171331.77282991,0.00029,2]
[314410060,1708301444534,-500.0,0.00029041,2]
[314410061,1708301444543,-1007.83,0.00029041,2]
[314410062,1708301444552,-565.79,0.00029041,2]
[314410063,1708301444561,-620.32,0.00029041,2]
[314410064,1708301444571,-500.0,0.00029041,2]
[314410065,1708301444580,-500.0,0.00029041,2]
[314410066,1708301444589,-297.12705329,0.00029041,2]
[314410067,1708301444598,-1347.38,0.00029041,2]
[314410068,1708301444607,-983.78,0.00029041,2]
[314410069,1708301444617,-948.84,0.00029041,2]
[314410070,1708301444626,-841.32,0.00029041,2]
[314410071,1708301444635,-500.0,0.00029041,2]
[314410072,1708301444644,-166.16767297,0.00029315,2]
[314410073,1708301444653,-1007.83,0.00029315,2]
[314410074,1708301444663,-565.79,0.00029315,2]
[314410075,1708301444675,-620.32,0.00029315,2]
[314410076,1708301444685,-500.0,0.00029315,2]
[314410077,1708301444694,-500.0,0.00029315,2]
[314410078,1708301444703,-1347.38,0.00029315,2]
[314410079,1708301444714,-983.78,0.00029315,2]
[314410080,1708301444722,-948.84,0.00029315,2]
[314410081,1708301444734,-841.32,0.00029315,2]
[314410082,1708301444743,-500.0,0.00029315,2]
[314410083,1708301444753,-251.0965071,0.0002943,2]
[314410084,1708301444764,-38051.06810413,0.000295,30]
[314410085,1708301444775,-1007.83,0.00029589,2]
[314410086,1708301444785,-565.79,0.00029589,2]
[314410087,1708301444794,-620.32,0.00029589,2]
[314410088,1708301444803,-229.32820566,0.00029589,2]
[314410089,1708301444813,-400.68143086,0.00029589,2]
[314410090,1708301444823,-1347.38,0.00029589,2]
[314410091,1708301444834,-983.78,0.00029589,2]
[314410092,1708301444843,-948.84,0.00029589,2]
[314410093,1708301444853,-841.32,0.00029589,2]
[314410094,1708301444863,-634.27486928,0.00029589,2]
[314410095,1708301444872,-153.0,0.00029589,2]
[314410096,1708301444881,-153.0,0.00029589,2]
[314410097,1708301444891,-200.3472215,0.00029589,2]
[314410098,1708301444900,-153.0,0.00029589,2]
[314410099,1708301444909,-153.0,0.00029589,2]
[314410100,1708301444918,-200.3472215,0.00029589,2]
[314410101,1708301444928,-153.0,0.00029589,2]
[314410102,1708301444937,-153.0,0.00029589,2]
[314410103,1708301444947,-153.0,0.00029589,2]
[314410104,1708301444957,-153.0,0.00029589,2]
[314410105,1708301444967,-200.3472215,0.00029589,2]
[314410106,1708301444977,-153.0,0.00029589,2]
[314410107,1708301444986,-200.3472215,0.00029589,2]
[314410108,1708301444996,-153.0,0.00029589,2]
[314410109,1708301445005,-153.0,0.00029589,2]
[314410110,1708301445014,-153.0,0.00029589,2]
[314410111,1708301445024,-200.3472215,0.00029589,2]
[314410112,1708301445033,-200.3472215,0.00029589,2]